[Event "Torneo Benidorm Gran Hotel Bali 2022"]
[Site "Benidorm, Spain"]
[Date "2022.12.08"]
[Round "7.2"]
[White "Korneev, Oleg"]
[Black "Aguilera Lopez, Alejandro"]
[Result "1-0"]
[ECO "B84"]
[WhiteElo "2481"]
[BlackElo "2184"]
[PlyCount "49"]
[EventDate "2022.12.03"]
[EventType "swiss"]
[EventRounds "9"]
[SourceTitle "Ajedrez en Madrid"]
[Source "lmi"]
[SourceDate "2022.12.03"]
[SourceVersion "1"]
[SourceVersionDate "2022.12.10"]
[SourceQuality "1"]
[TimeControl "90+30"]
[WhiteClock "0:21:07"]
[BlackClock "0:14:58"]

1. e4 {[%emt 0:00:00]} c5 {[%emt 0:00:00]} 2. Nf3 {[%emt 0:00:00]} e6 {[%emt 0:00:00]} 3. Be2 {[%emt 0:00:00]} Nc6 {[%emt 0:00:00]} 4. O-O {[%emt 0:00:00]} Nf6 {[%emt 0:00:00]} 5. Nc3 {[%emt 0:00:00]} Be7 {[%emt 0:00:00]} 6. d4 {[%emt 0:00:00]} cxd4 {[%emt 0:00:00]} 7. Nxd4 {[%emt 0:00:00]} d6 {[%emt 0:00:00]} 8. f4 {[%emt 0:00:00]} Qc7 {[%emt 0:00:00]} 9. Be3 {[%emt 0:00:00]} a6 {[%emt 0:00:00]} 10. Qe1 {[%emt 0:00:00]} b5 {[%emt 0:00:00]} 11. Nxc6 {[%emt 0:00:00]} Qxc6 {[%emt 0:00:00]} 12. Bf3 {[%emt 0:00:00]} e5 {[%emt 0:00:00]} 13. Nd5 {[%emt 0:00:00]} Nxd5 {[%emt 0:00:00]} 14. exd5 {[%emt 0:00:00]} Qxc2 {[%emt 0:00:00]} 15. fxe5 {[%emt 0:00:00]} O-O {[%emt 0:00:00]} 16. Bd4 {[%emt 0:00:00]} Bf5 {[%emt 0:00:00]} 17. Qg3 {[%emt 0:00:00]} Bg6 {[%emt 0:00:00]} 18. exd6 {[%emt 0:00:00]} Bf6 {[%emt 0:00:00]} 19. Bxf6 {[%emt 0:00:00]} gxf6 {[%emt 0:00:00]} 20. h4 {[%emt 0:00:00]} Kh8 {[%emt 0:00:00]} 21. Qf4 {[%emt 0:00:00]} Qxb2 {[%emt 0:00:00]} 22. h5 {[%emt 0:00:00]} Bc2 {[%emt 0:00:00]} 23. Rac1 {[%emt 0:00:00]} Ba4 {[%emt 0:00:00]} 24. Rfe1 {[%emt 0:00:00]} b4 {[%emt 0:00:00]} 25. Re2 {[%emt 0:00:00]} 1-0

[Event "Torneo Benidorm Gran Hotel Bali 2022"]
[Site "Benidorm, Spain"]
[Date "2022.12.08"]
[Round "7.3"]
[White "Aditya, Varun Gampa"]
[Black "Sos Andreu, Eric"]
[Result "1-0"]
[ECO "B12"]
[WhiteElo "2249"]
[BlackElo "2364"]
[PlyCount "45"]
[EventDate "2022.12.03"]
[EventType "swiss"]
[EventRounds "9"]
[SourceTitle "Ajedrez en Madrid"]
[Source "lmi"]
[SourceDate "2022.12.03"]
[SourceVersion "1"]
[SourceVersionDate "2022.12.10"]
[SourceQuality "1"]
[TimeControl "90+30"]
[WhiteClock "0:22:08"]
[BlackClock "0:16:03"]

1. e4 {[%emt 0:00:00]} c6 {[%emt 0:00:00]} 2. d4 {[%emt 0:00:00]} d5 {[%emt 0:00:00]} 3. e5 {[%emt 0:00:00]} Bf5 {[%emt 0:00:00]} 4. h4 {[%emt 0:00:00]} h5 {[%emt 0:00:00]} 5. c4 {[%emt 0:00:00]} e6 {[%emt 0:00:00]} 6. Nc3 {[%emt 0:00:00]} Ne7 {[%emt 0:00:00]} 7. Nge2 {[%emt 0:00:00]} Nd7 {[%emt 0:00:00]} 8. Ng3 {[%emt 0:00:00]} Bg6 {[%emt 0:00:00]} 9. Bg5 {[%emt 0:00:00]} Qb6 {[%emt 0:00:00]} 10. Rc1 {[%emt 0:00:00]} dxc4 {[%emt 0:00:00]} 11. Bxc4 {[%emt 0:00:00]} Rd8 {[%emt 0:00:00]} 12. Na4 {[%emt 0:00:00]} Qa5+ {[%emt 0:00:00]} 13. b4 {[%emt 0:00:00]} Qc7 {[%emt 0:00:00]} 14. O-O {[%emt 0:00:00]} Nb6 {[%emt 0:00:00]} 15. Be2 {[%emt 0:00:00]} Nxa4 {[%emt 0:00:00]} 16. Qxa4 {[%emt 0:00:00]} a6 {[%emt 0:00:00]} 17. Bf3 {[%emt 0:00:00]} Rxd4 {[%emt 0:00:00]} 18. Ne2 {[%emt 0:00:00]} Rd7 {[%emt 0:00:00]} 19. Nf4 {[%emt 0:00:00]} Qxe5 {[%emt 0:00:00]} 20. Nxg6 {[%emt 0:00:00]} Nxg6 {[%emt 0:00:00]} 21. Rxc6 {[%emt 0:00:00]} bxc6 {[%emt 0:00:00]} 22. Bxc6 {[%emt 0:00:00]} Qc7 {[%emt 0:00:00]} 23. Bxd7+ {[%emt 0:01:59]} 1-0

[Event "Torneo Benidorm Gran Hotel Bali 2022"]
[Site "Benidorm, Spain"]
[Date "2022.12.08"]
[Round "7.4"]
[White "Mingarro Carceller, Sergi"]
[Black "Valdepenas Octavio, Javier"]
[Result "1-0"]
[ECO "B32"]
[WhiteElo "2330"]
[BlackElo "2216"]
[PlyCount "81"]
[EventDate "2022.12.03"]
[EventType "swiss"]
[EventRounds "9"]
[SourceTitle "Ajedrez en Madrid"]
[Source "lmi"]
[SourceDate "2022.12.03"]
[SourceVersion "1"]
[SourceVersionDate "2022.12.10"]
[SourceQuality "1"]
[TimeControl "90+30"]
[WhiteClock "0:03:38"]
[BlackClock "0:00:32"]

1. e4 {[%emt 0:00:00]} c5 {[%emt 0:00:00]} 2. Nf3 {[%emt 0:00:00]} Nc6 {[%emt 0:00:00]} 3. d4 {[%emt 0:00:00]} cxd4 {[%emt 0:00:00]} 4. Nxd4 {[%emt 0:00:00]} e5 {[%emt 0:00:00]} 5. Nb5 {[%emt 0:00:00]} d6 {[%emt 0:00:00]} 6. c4 {[%emt 0:00:15]} Be7 {[%emt 0:00:00]} 7. N1c3 {[%emt 0:00:00]} Nf6 {[%emt 0:00:00]} 8. Bg5 {[%emt 0:00:00]} a6 {[%emt 0:00:00]} 9. Bxf6 {[%emt 0:00:00]} gxf6 {[%emt 0:00:00]} 10. Na3 {[%emt 0:00:00]} f5 {[%emt 0:00:00]} 11. Bd3 {[%emt 0:00:00]} f4 {[%emt 0:00:00]} 12. Nc2 {[%emt 0:00:00]} Be6 {[%emt 0:00:00]} 13. g3 {[%emt 0:00:00]} Qb6 14. Qd2 {[%emt 0:00:00]} Rc8 15. O-O-O {[%emt 0:09:31]} Nd4 {[%emt 0:05:45]} 16. gxf4 {[%emt 0:00:00]} exf4 {[%emt 0:00:00]} 17. Qxf4 {[%emt 0:00:00]} Nxc2 {[%emt 0:00:00]} 18. Bxc2 {[%emt 0:00:00]} Rxc4 {[%emt 0:00:00]} 19. Rd3 {[%emt 0:00:00]} Qc5 {[%emt 0:00:00]} 20. Kb1 {[%emt 0:00:00]} Qe5 {[%emt 0:00:00]} 21. Qe3 {[%emt 0:00:00]} Bg5 {[%emt 0:00:15]} 22. Qb6 {[%emt 0:00:00]} O-O {[%emt 0:02:09]} 23. Qxd6 {[%emt 0:00:00]} Qxd6 {[%emt 0:00:39]} 24. Rxd6 {[%emt 0:00:00]} Bf4 {[%emt 0:01:25]} 25. Rdd1 {[%emt 0:00:00]} Rc5 {[%emt 0:00:55]} 26. Ne2 {[%emt 0:00:00]} Bh6 {[%emt 0:00:03]} 27. Nd4 {[%emt 0:00:00]} Rfc8 {[%emt 0:01:01]} 28. Bb3 {[%emt 0:00:00]} Bxb3 {[%emt 0:01:15]} 29. axb3 {[%emt 0:00:00]} Kf8 {[%emt 0:01:14]} 30. f4 {[%emt 0:01:52]} Ke8 {[%emt 0:00:30]} 31. Rhf1 {[%emt 0:00:34]} Rh5 {[%emt 0:00:55]} 32. Nf5 {[%emt 0:00:28]} Bf8 {[%emt 0:00:39]} 33. Rf2 {[%emt 0:00:41]} Rh3 {[%emt 0:00:07]} 34. Rd5 {[%emt 0:01:29]} f6 {[%emt 0:00:16]} 35. Ka2 {[%emt 0:00:58]} Rc5 {[%emt 0:01:04]} 36. Ng7+ {[%emt 0:00:52]} Kf7 {[%emt 0:00:17]} 37. Rd7+ {[%emt 0:00:02]} Kg8 {[%emt 0:00:48]} 38. Ne6 {[%emt 0:00:59]} Rc8 {[%emt 0:00:41]} 39. Rg2+ {[%emt 0:00:16]} Kh8 {[%emt 0:00:03]} 40. Nd8 {[%emt 0:00:08]} h5 {[%emt 0:00:57]} 41. Nf7+ {[%emt 0:00:17]} 1-0

[Event "Torneo Benidorm Gran Hotel Bali 2022"]
[Site "Benidorm, Spain"]
[Date "2022.12.08"]
[Round "7.5"]
[White "Kovacevic, Slobodan"]
[Black "Luque Saiz, Andres"]
[Result "1/2-1/2"]
[ECO "A80"]
[WhiteElo "2224"]
[BlackElo "2286"]
[PlyCount "28"]
[EventDate "2022.12.03"]
[EventType "swiss"]
[EventRounds "9"]
[SourceTitle "Ajedrez en Madrid"]
[Source "lmi"]
[SourceDate "2022.12.03"]
[SourceVersion "1"]
[SourceVersionDate "2022.12.10"]
[SourceQuality "1"]
[TimeControl "90+30"]
[WhiteClock "1:23:02"]
[BlackClock "1:10:28"]

1. d4 {[%emt 0:02:28]} e6 {[%emt 0:00:00]} 2. Nf3 {[%emt 0:00:00]} f5 {[%emt 0:00:00]} 3. Bf4 {[%emt 0:00:00]} Nf6 {[%emt 0:00:00]} 4. e3 {[%emt 0:00:00]} b6 {[%emt 0:00:00]} 5. Nbd2 {[%emt 0:00:00]} Bb7 {[%emt 0:00:00]} 6. Bd3 {[%emt 0:00:00]} Nc6 {[%emt 0:00:00]} 7. c3 {[%emt 0:00:00]} Bd6 {[%emt 0:00:00]} 8. Qe2 {[%emt 0:00:00]} Bxf4 {[%emt 0:00:00]} 9. exf4 {[%emt 0:00:00]} Ne7 {[%emt 0:00:00]} 10. g3 {[%emt 0:00:00]} O-O {[%emt 0:00:00]} 11. Ba6 {[%emt 0:00:00]} Bd5 {[%emt 0:00:00]} 12. Bc4 {[%emt 0:00:00]} Bb7 {[%emt 0:00:00]} 13. Ba6 {[%emt 0:00:00]} Bd5 {[%emt 0:00:00]} 14. Bc4 {[%emt 0:00:00]} Bb7 {[%emt 0:00:00]} 1/2-1/2

[Event "Torneo Benidorm Gran Hotel Bali 2022"]
[Site "Benidorm, Spain"]
[Date "2022.12.08"]
[Round "7.6"]
[White "Shaik, Sumer Arsh"]
[Black "Chia, Yu Zhe Ashton"]
[Result "1-0"]
[ECO "A30"]
[WhiteElo "2290"]
[BlackElo "1970"]
[PlyCount "85"]
[EventDate "2022.12.03"]
[EventType "swiss"]
[EventRounds "9"]
[SourceTitle "Ajedrez en Madrid"]
[Source "lmi"]
[SourceDate "2022.12.03"]
[SourceVersion "1"]
[SourceVersionDate "2022.12.10"]
[SourceQuality "1"]
[TimeControl "90+30"]
[WhiteClock "0:01:43"]
[BlackClock "0:00:42"]

1. Nf3 {[%emt 0:00:00]} Nf6 {[%emt 0:00:00]} 2. c4 {[%emt 0:00:00]} e6 {[%emt 0:00:00]} 3. g3 {[%emt 0:00:00]} b6 {[%emt 0:00:00]} 4. Bg2 {[%emt 0:00:00]} Bb7 {[%emt 0:00:00]} 5. O-O {[%emt 0:00:00]} Be7 {[%emt 0:00:00]} 6. Nc3 {[%emt 0:00:00]} c5 {[%emt 0:00:00]} 7. d4 {[%emt 0:00:00]} cxd4 {[%emt 0:00:00]} 8. Qxd4 {[%emt 0:00:00]} Nc6 {[%emt 0:00:00]} 9. Qf4 {[%emt 0:00:00]} a6 {[%emt 0:00:00]} 10. Rd1 {[%emt 0:00:00]} O-O {[%emt 0:00:00]} 11. e4 {[%emt 0:00:00]} d6 {[%emt 0:00:00]} 12. b3 {[%emt 0:00:00]} Qc7 {[%emt 0:00:00]} 13. Ba3 {[%emt 0:00:00]} Rfd8 {[%emt 0:00:00]} 14. Rac1 {[%emt 0:00:00]} Ne5 {[%emt 0:00:00]} 15. h3 {[%emt 0:00:00]} Rac8 {[%emt 0:00:00]} 16. Qe3 {[%emt 0:00:00]} Nxf3+ {[%emt 0:00:00]} 17. Bxf3 {[%emt 0:00:00]} h6 {[%emt 0:00:00]} 18. Qd4 {[%emt 0:00:00]} Rb8 {[%emt 0:00:00]} 19. h4 {[%emt 0:00:00]} Ba8 {[%emt 0:00:00]} 20. Bb2 {[%emt 0:00:00]} Bf8 {[%emt 0:00:00]} 21. Qe3 {[%emt 0:01:35]} Be7 {[%emt 0:00:00]} 22. Ne2 {[%emt 0:05:11]} Nd7 {[%emt 0:00:00]} 23. Nf4 {[%emt 0:00:18]} Ne5 {[%emt 0:00:00]} 24. Bg2 {[%emt 0:00:44]} Bf8 {[%emt 0:00:00]} 25. Nh5 {[%emt 0:02:23]} f6 {[%emt 0:05:46]} 26. Qe2 {[%emt 0:00:54]} Qf7 {[%emt 0:00:35]} 27. Nf4 {[%emt 0:02:30]} g6 {[%emt 0:02:31]} 28. b4 {[%emt 0:01:15]} Bc6 {[%emt 0:00:48]} 29. Nd3 {[%emt 0:00:36]} Rbc8 {[%emt 0:03:48]} 30. f4 {[%emt 0:00:29]} Nxd3 {[%emt 0:00:56]} 31. Qxd3 {[%emt 0:00:05]} b5 {[%emt 0:00:35]} 32. Qd4 {[%emt 0:00:46]} Be7 {[%emt 0:01:19]} 33. Bf1 {[%emt 0:00:36]} Kh7 {[%emt 0:01:02]} 34. cxb5 {[%emt 0:00:31]} axb5 {[%emt 0:00:02]} 35. a4 {[%emt 0:00:13]} f5 {[%emt 0:00:39]} 36. exf5 {[%emt 0:00:14]} gxf5 {[%emt 0:00:01]} 37. Bxb5 {[%emt 0:00:46]} Bf3 {[%emt 0:00:07]} 38. Rf1 {[%emt 0:00:23]} Bd5 {[%emt 0:01:29]} 39. Kh2 {[%emt 0:00:33]} Rg8 {[%emt 0:00:26]} 40. Rxc8 {[%emt 0:00:30]} Rxc8 {[%emt 0:00:32]} 41. Bd3 {[%emt 0:00:02]} Qg6 {[%emt 0:00:29]} 42. Rc1 {[%emt 0:00:35]} Bxh4 {[%emt 0:00:43]} 43. Qa7+ {[%emt 0:00:08]} 1-0

[Event "Torneo Benidorm Gran Hotel Bali 2022"]
[Site "Benidorm, Spain"]
[Date "2022.12.08"]
[Round "7.7"]
[White "Granero Roca, Antonio"]
[Black "Garcia Amoros, Pablo"]
[Result "1-0"]
[ECO "E61"]
[WhiteElo "2345"]
[BlackElo "2076"]
[PlyCount "83"]
[EventDate "2022.12.03"]
[EventType "swiss"]
[EventRounds "9"]
[SourceTitle "Ajedrez en Madrid"]
[Source "lmi"]
[SourceDate "2022.12.03"]
[SourceVersion "1"]
[SourceVersionDate "2022.12.10"]
[SourceQuality "1"]
[TimeControl "90+30"]
[WhiteClock "0:55:12"]
[BlackClock "0:43:37"]

1. d4 {[%emt 0:00:00]} Nf6 {[%emt 0:00:00]} 2. c4 {[%emt 0:00:00]} d6 {[%emt 0:00:00]} 3. Nf3 {[%emt 0:00:00]} g6 {[%emt 0:00:00]} 4. Nc3 {[%emt 0:00:00]} Bf5 {[%emt 0:00:00]} 5. d5 {[%emt 0:00:00]} Bg7 {[%emt 0:00:00]} 6. Nd4 {[%emt 0:00:00]} Bd7 {[%emt 0:00:00]} 7. e4 {[%emt 0:00:00]} e5 {[%emt 0:00:00]} 8. Nc2 {[%emt 0:00:00]} a5 {[%emt 0:00:00]} 9. Be2 {[%emt 0:00:00]} Na6 {[%emt 0:00:00]} 10. Be3 {[%emt 0:00:00]} Nc5 {[%emt 0:00:00]} 11. f3 {[%emt 0:00:00]} Nh5 {[%emt 0:00:00]} 12. g3 {[%emt 0:00:00]} O-O {[%emt 0:00:00]} 13. Qd2 {[%emt 0:00:00]} f5 {[%emt 0:00:00]} 14. exf5 {[%emt 0:00:00]} gxf5 {[%emt 0:00:00]} 15. O-O-O {[%emt 0:00:00]} f4 {[%emt 0:00:00]} 16. Bxc5 {[%emt 0:00:00]} dxc5 {[%emt 0:00:00]} 17. Ne4 {[%emt 0:00:00]} b6 {[%emt 0:00:00]} 18. g4 {[%emt 0:00:00]} Nf6 {[%emt 0:00:00]} 19. Bd3 {[%emt 0:00:00]} Ne8 {[%emt 0:00:00]} 20. Qe2 {[%emt 0:00:00]} Nd6 {[%emt 0:00:00]} 21. Na3 {[%emt 0:00:00]} Qh4 {[%emt 0:00:00]} 22. Nb1 {[%emt 0:00:00]} Be8 {[%emt 0:00:00]} 23. Nbc3 {[%emt 0:00:00]} Rd8 {[%emt 0:00:00]} 24. Kb1 {[%emt 0:00:00]} Nxe4 {[%emt 0:00:00]} 25. Bxe4 {[%emt 0:00:00]} Rd6 {[%emt 0:04:12]} 26. Qc2 {[%emt 0:00:00]} Rh6 {[%emt 0:00:00]} 27. a3 {[%emt 0:00:00]} Qe7 {[%emt 0:00:00]} 28. h4 {[%emt 0:00:00]} Rxh4 {[%emt 0:00:00]} 29. Bxh7+ {[%emt 0:00:00]} Kh8 {[%emt 0:00:00]} 30. Be4 {[%emt 0:00:00]} Bh6 {[%emt 0:00:00]} 31. Qf2 {[%emt 0:00:00]} Rxh1 {[%emt 0:00:00]} 32. Rxh1 {[%emt 0:00:00]} Qg5 {[%emt 0:00:00]} 33. Bc2 {[%emt 0:00:00]} Bg6 {[%emt 0:00:00]} 34. Bxg6 {[%emt 0:00:00]} Qxg6+ {[%emt 0:00:00]} 35. Ne4 {[%emt 0:00:00]} Kg7 {[%emt 0:00:00]} 36. g5 {[%emt 0:00:00]} Bxg5 {[%emt 0:00:00]} 37. Rg1 {[%emt 0:00:00]} Rf5 {[%emt 0:00:00]} 38. Qg2 {[%emt 0:00:00]} Kh6 {[%emt 0:00:30]} 39. Qh3+ {[%emt 0:00:00]} Kg7 {[%emt 0:00:00]} 40. Qxf5 {[%emt 0:00:00]} Qxf5 {[%emt 0:00:00]} 41. Rxg5+ {[%emt 0:00:00]} Qxg5 {[%emt 0:00:00]} 42. Nxg5 {[%emt 0:00:00]} 1-0

[Event "Torneo Benidorm Gran Hotel Bali 2022"]
[Site "Benidorm, Spain"]
[Date "2022.12.08"]
[Round "7.8"]
[White "Feal Albala, Alonso"]
[Black "Remolar Gallen, Jose"]
[Result "0-1"]
[ECO "B92"]
[WhiteElo "1935"]
[BlackElo "2305"]
[PlyCount "64"]
[EventDate "2022.12.03"]
[EventType "swiss"]
[EventRounds "9"]
[SourceTitle "Ajedrez en Madrid"]
[Source "lmi"]
[SourceDate "2022.12.03"]
[SourceVersion "1"]
[SourceVersionDate "2022.12.10"]
[SourceQuality "1"]
[TimeControl "90+30"]
[WhiteClock "0:23:10"]
[BlackClock "0:11:22"]

1. e4 {[%emt 0:00:00]} c5 {[%emt 0:00:00]} 2. Nf3 {[%emt 0:00:00]} d6 {[%emt 0:00:00]} 3. d4 {[%emt 0:00:00]} cxd4 {[%emt 0:00:00]} 4. Nxd4 {[%emt 0:00:00]} Nf6 {[%emt 0:00:00]} 5. Nc3 {[%emt 0:00:00]} a6 {[%emt 0:00:00]} 6. Be2 {[%emt 0:00:00]} e5 {[%emt 0:00:00]} 7. Nb3 {[%emt 0:00:00]} Be7 {[%emt 0:00:00]} 8. Be3 {[%emt 0:00:00]} Be6 {[%emt 0:00:00]} 9. Nd5 {[%emt 0:00:00]} Nbd7 {[%emt 0:00:00]} 10. Nxe7 {[%emt 0:00:00]} Qxe7 {[%emt 0:00:00]} 11. Bf3 {[%emt 0:00:00]} O-O {[%emt 0:00:00]} 12. O-O {[%emt 0:00:00]} a5 {[%emt 0:00:00]} 13. Qd2 {[%emt 0:00:00]} b6 {[%emt 0:00:00]} 14. Rad1 {[%emt 0:00:00]} Rfc8 {[%emt 0:00:00]} 15. c3 {[%emt 0:00:00]} Rc6 {[%emt 0:00:00]} 16. h3 {[%emt 0:00:00]} h6 {[%emt 0:00:00]} 17. Kh2 {[%emt 0:00:00]} Nf8 {[%emt 0:00:00]} 18. g4 {[%emt 0:00:00]} g5 {[%emt 0:00:00]} 19. Nc1 {[%emt 0:00:00]} Ng6 {[%emt 0:00:00]} 20. Ne2 {[%emt 0:00:00]} Nh4 {[%emt 0:00:00]} 21. Bh1 {[%emt 0:00:00]} Bxa2 {[%emt 0:00:00]} 22. Ng3 {[%emt 0:00:00]} Bb3 {[%emt 0:00:00]} 23. Rde1 {[%emt 0:00:00]} Rd8 {[%emt 0:00:00]} 24. Bxg5 {[%emt 0:00:00]} Nxg4+ {[%emt 0:00:00]} 25. hxg4 {[%emt 0:00:00]} hxg5 {[%emt 0:00:00]} 26. Nf5 {[%emt 0:00:00]} Nxf5 {[%emt 0:00:00]} 27. gxf5 {[%emt 0:00:00]} d5 {[%emt 0:00:55]} 28. f6 {[%emt 0:00:00]} Rxf6 {[%emt 0:02:11]} 29. Qxg5+ {[%emt 0:00:00]} Kh7 {[%emt 0:00:38]} 30. Re3 {[%emt 0:00:00]} Rxf2+ {[%emt 0:00:57]} 31. Rxf2 {[%emt 0:00:00]} Qxg5 {[%emt 0:00:02]} 32. Rxf7+ {[%emt 0:00:00]} Kg6 {[%emt 0:01:25]} 0-1

[Event "Torneo Benidorm Gran Hotel Bali 2022"]
[Site "Benidorm, Spain"]
[Date "2022.12.08"]
[Round "7.9"]
[White "Salgado Lopez, Oscar"]
[Black "Perez Pacheco, Ricardo"]
[Result "1-0"]
[ECO "D31"]
[WhiteElo "2070"]
[BlackElo "2169"]
[PlyCount "95"]
[EventDate "2022.12.03"]
[EventType "swiss"]
[EventRounds "9"]
[SourceTitle "Ajedrez en Madrid"]
[Source "lmi"]
[SourceDate "2022.12.03"]
[SourceVersion "1"]
[SourceVersionDate "2022.12.10"]
[SourceQuality "1"]
[TimeControl "90+30"]
[WhiteClock "0:04:39"]

1. d4 {[%emt 0:00:00]} d5 {[%emt 0:00:00]} 2. c4 {[%emt 0:00:00]} e6 {[%emt 0:00:00]} 3. Nc3 {[%emt 0:00:00]} a6 {[%emt 0:00:00]} 4. cxd5 {[%emt 0:00:00]} exd5 {[%emt 0:00:00]} 5. Bf4 {[%emt 0:00:00]} Nf6 {[%emt 0:00:00]} 6. e3 {[%emt 0:00:00]} Be6 {[%emt 0:00:00]} 7. Bd3 {[%emt 0:00:00]} Bd6 {[%emt 0:00:00]} 8. Bg3 {[%emt 0:00:00]} O-O {[%emt 0:00:00]} 9. Nf3 {[%emt 0:00:00]} h6 {[%emt 0:00:00]} 10. Rc1 {[%emt 0:00:00]} Nbd7 {[%emt 0:00:00]} 11. Bxd6 {[%emt 0:00:00]} cxd6 {[%emt 0:00:00]} 12. h3 {[%emt 0:00:00]} b5 {[%emt 0:00:00]} 13. O-O {[%emt 0:00:00]} Nb6 {[%emt 0:00:00]} 14. b3 {[%emt 0:00:00]} b4 {[%emt 0:00:00]} 15. Ne2 {[%emt 0:00:00]} Ne4 {[%emt 0:00:00]} 16. Nd2 {[%emt 0:00:00]} f5 {[%emt 0:00:00]} 17. f3 {[%emt 0:00:00]} Nf6 {[%emt 0:00:00]} 18. Re1 {[%emt 0:00:00]} Nh5 {[%emt 0:00:00]} 19. Nf1 {[%emt 0:00:00]} Qd7 {[%emt 0:00:00]} 20. Qd2 {[%emt 0:00:00]} a5 {[%emt 0:00:00]} 21. Rc2 {[%emt 0:00:00]} Rac8 {[%emt 0:00:00]} 22. Rec1 {[%emt 0:00:00]} Rxc2 {[%emt 0:00:00]} 23. Rxc2 {[%emt 0:00:00]} Rc8 {[%emt 0:00:00]} 24. Nfg3 {[%emt 0:00:00]} Nxg3 {[%emt 0:00:00]} 25. Nxg3 {[%emt 0:00:00]} Rxc2 {[%emt 0:00:00]} 26. Qxc2 {[%emt 0:00:00]} g6 {[%emt 0:00:00]} 27. Ne2 {[%emt 0:00:00]} Qc8 {[%emt 0:00:56]} 28. Qd2 {[%emt 0:00:00]} Kg7 {[%emt 0:00:47]} 29. Qe1 {[%emt 0:00:00]} Qd8 {[%emt 0:01:23]} 30. Qg3 {[%emt 0:00:00]} Qe7 {[%emt 0:07:09]} 31. Kf2 {[%emt 0:00:00]} Nd7 {[%emt 0:02:30]} 32. Nf4 {[%emt 0:01:53]} Nf8 {[%emt 0:00:21]} 33. h4 {[%emt 0:00:30]} Kf7 {[%emt 0:00:53]} 34. Qh3 {[%emt 0:02:06]} Qf6 {[%emt 0:01:25]} 35. Qh1 {[%emt 0:01:23]} Qd8 {[%emt 0:00:43]} 36. g3 {[%emt 0:05:02]} Qc8 {[%emt 0:00:26]} 37. Ne2 {[%emt 0:00:36]} Kg7 {[%emt 0:01:43]} 38. Qe1 {[%emt 0:00:18]} Nd7 {[%emt 0:00:47]} 39. a3 {[%emt 0:02:39]} Qb7 {[%emt 0:00:35]} 40. axb4 {[%emt 0:00:13]} axb4 {[%emt 0:00:26]} 41. Qc1 {[%emt 0:00:13]} Nb8 {[%emt 0:01:04]} 42. Qb1 {[%emt 0:01:30]} h5 {[%emt 0:00:37]} 43. Qa1 {[%emt 0:00:13]} Nc6 {[%emt 0:00:43]} 44. Qa4 {[%emt 0:00:34]} Bd7 {[%emt 0:00:28]} 45. Qa1 {[%emt 0:01:35]} Na7 {[%emt 0:00:32]} 46. Nf4 {[%emt 0:01:03]} Bb5 {[%emt 0:00:30]} 47. Qa5 {[%emt 0:00:33]} Bc6 {[%emt 0:01:02]} 48. Qd8 {[%emt 0:00:28]} 1-0

[Event "Torneo Benidorm Gran Hotel Bali 2022"]
[Site "Benidorm, Spain"]
[Date "2022.12.08"]
[Round "7.10"]
[White "Rodriguez Redondo, Adhara"]
[Black "Tscharotschkin, Michael"]
[Result "1-0"]
[ECO "C01"]
[WhiteElo "2057"]
[BlackElo "2137"]
[PlyCount "129"]
[EventDate "2022.12.03"]
[EventType "swiss"]
[EventRounds "9"]
[SourceTitle "Ajedrez en Madrid"]
[Source "lmi"]
[SourceDate "2022.12.03"]
[SourceVersion "1"]
[SourceVersionDate "2022.12.10"]
[SourceQuality "1"]
[TimeControl "90+30"]
[WhiteClock "0:01:53"]
[BlackClock "0:05:59"]

1. e4 {[%emt 0:00:00]} e6 {[%emt 0:00:00]} 2. d4 {[%emt 0:00:00]} d5 {[%emt 0:00:00]} 3. exd5 {[%emt 0:00:00]} exd5 {[%emt 0:00:00]} 4. Nf3 {[%emt 0:00:00]} Nf6 {[%emt 0:00:00]} 5. Bd3 {[%emt 0:00:00]} Be7 {[%emt 0:00:00]} 6. O-O {[%emt 0:00:00]} O-O {[%emt 0:00:00]} 7. h3 {[%emt 0:00:00]} Re8 {[%emt 0:00:00]} 8. Bf4 {[%emt 0:00:00]} Nbd7 {[%emt 0:00:00]} 9. Nbd2 {[%emt 0:00:00]} Nf8 {[%emt 0:00:00]} 10. Ne5 {[%emt 0:00:00]} Ng6 {[%emt 0:00:00]} 11. Bg3 {[%emt 0:00:00]} Nxe5 {[%emt 0:00:00]} 12. dxe5 {[%emt 0:00:00]} Nd7 {[%emt 0:00:00]} 13. c3 {[%emt 0:00:00]} g6 {[%emt 0:00:00]} 14. Nf3 {[%emt 0:00:00]} Nc5 {[%emt 0:00:00]} 15. Bc2 {[%emt 0:00:00]} Ne6 {[%emt 0:00:00]} 16. Qd2 {[%emt 0:00:00]} c6 {[%emt 0:00:00]} 17. Rad1 {[%emt 0:00:00]} Qb6 {[%emt 0:00:00]} 18. b3 {[%emt 0:00:00]} Ng7 {[%emt 0:00:00]} 19. Bf4 {[%emt 0:00:00]} Bf5 {[%emt 0:00:00]} 20. Bxf5 {[%emt 0:00:00]} Nxf5 {[%emt 0:00:00]} 21. Bg5 {[%emt 0:00:00]} Bxg5 {[%emt 0:00:00]} 22. Qxg5 {[%emt 0:00:00]} Qd8 {[%emt 0:00:00]} 23. Qf4 {[%emt 0:00:00]} Qe7 {[%emt 0:00:00]} 24. Rfe1 {[%emt 0:00:00]} Ng7 {[%emt 0:00:00]} 25. Nh2 {[%emt 0:00:00]} Nh5 {[%emt 0:00:00]} 26. Qf3 {[%emt 0:00:00]} Qg5 {[%emt 0:00:00]} 27. Ng4 {[%emt 0:00:00]} Re6 {[%emt 0:00:00]} 28. h4 {[%emt 0:00:00]} Qe7 {[%emt 0:00:00]} 29. Nh6+ {[%emt 0:07:36]} Kg7 {[%emt 0:00:00]} 30. Qxh5 {[%emt 0:02:06]} gxh5 {[%emt 0:00:00]} 31. Nf5+ {[%emt 0:00:04]} Kg6 {[%emt 0:00:00]} 32. Nxe7+ {[%emt 0:00:02]} Rxe7 {[%emt 0:00:00]} 33. Re3 {[%emt 0:02:38]} h6 {[%emt 0:00:00]} 34. c4 {[%emt 0:01:43]} Rae8 {[%emt 0:01:14]} 35. cxd5 {[%emt 0:00:36]} Rxe5 {[%emt 0:03:24]} 36. Rxe5 {[%emt 0:00:10]} Rxe5 {[%emt 0:00:07]} 37. dxc6 {[%emt 0:00:38]} bxc6 {[%emt 0:01:05]} 38. Rd6+ {[%emt 0:01:14]} Re6 {[%emt 0:00:10]} 39. Rd7 {[%emt 0:00:33]} a5 {[%emt 0:00:57]} 40. g3 {[%emt 0:00:43]} Re2 {[%emt 0:01:21]} 41. a4 {[%emt 0:00:14]} Rc2 {[%emt 0:00:21]} 42. Ra7 {[%emt 0:01:06]} Rc5 {[%emt 0:01:34]} 43. Kf1 {[%emt 0:00:25]} f6 {[%emt 0:00:24]} 44. Ke2 {[%emt 0:00:26]} Rc2+ {[%emt 0:00:45]} 45. Ke1 {[%emt 0:02:46]} Rb2 {[%emt 0:00:40]} 46. Rxa5 {[%emt 0:00:33]} Rxb3 {[%emt 0:00:07]} 47. Rc5 {[%emt 0:00:13]} Ra3 {[%emt 0:00:24]} 48. a5 {[%emt 0:00:42]} Ra2 {[%emt 0:00:07]} 49. Kf1 {[%emt 0:00:23]} Ra4 {[%emt 0:01:15]} 50. Ke2 {[%emt 0:00:14]} Ra3 {[%emt 0:00:12]} 51. Kd2 {[%emt 0:00:41]} Ra2+ {[%emt 0:00:17]} 52. Ke3 {[%emt 0:00:08]} Ra3+ {[%emt 0:00:29]} 53. Kd4 {[%emt 0:01:01]} Ra4+ {[%emt 0:02:00]} 54. Kc3 {[%emt 0:00:33]} Ra2 {[%emt 0:00:59]} 55. Kb4 {[%emt 0:00:48]} Rxf2 {[%emt 0:04:30]} 56. Rxc6 {[%emt 0:00:21]} Rb2+ {[%emt 0:01:06]} 57. Ka3 {[%emt 0:00:25]} Rb1 {[%emt 0:00:41]} 58. Rb6 {[%emt 0:00:43]} Ra1+ {[%emt 0:00:13]} 59. Kb4 {[%emt 0:00:03]} Kf5 {[%emt 0:00:26]} 60. Rc6 {[%emt 0:00:54]} Kg4 {[%emt 0:00:17]} 61. Rc3 {[%emt 0:00:11]} Rb1+ {[%emt 0:00:46]} 62. Rb3 {[%emt 0:00:44]} Ra1 {[%emt 0:00:43]} 63. Ra3 {[%emt 0:00:11]} Rb1+ {[%emt 0:00:05]} 64. Kc5 {[%emt 0:00:09]} Rc1+ {[%emt 0:00:52]} 65. Kd6 {[%emt 0:00:10]} 1-0